[Event "Juniorallsvenskan 2019, Division 1 and 2"]
[Site "Molnlycke kulturhus, Biblioteksgatan 2, Molnlycke, Sweden"]
[Date "2019.11.23"]
[Round "3.14"]
[White "Johansson-Ohman, Linnea"]
[Black "Nystedt, Ludvig"]
[Result "1-0"]
[TimeControl "90 minutes + 30 seconds per move from move one"]
[WhiteFideId "1737260"]
[BlackFideId "1759540"]
[WhiteElo "1660"]
[BlackElo "1322"]

1. d4 {[%clk 01:30:54]} {[%emt 00:00:06]} d5 {[%clk 01:30:54]} {[%emt
00:00:06]} 2. c4 {[%clk 01:31:13]} {[%emt 00:00:10]} c6 {[%clk 01:31:22]}
{[%emt 00:00:03]} 3. Nf3 {[%clk 01:31:35]} {[%emt 00:00:08]} Nf6 {[%clk
01:31:35]} {[%emt 00:00:17]} 4. g3 {[%clk 01:31:27]} {[%emt 00:00:38]} e6
{[%clk 01:31:08]} {[%emt 00:00:56]} 5. Bg2 {[%clk 01:31:18]} {[%emt 00:00:39]}
Nbd7 {[%clk 01:31:26]} {[%emt 00:00:12]} 6. O-O {[%clk 01:24:33]} {[%emt
00:07:15]} Bd6 {[%clk 01:31:50]} {[%emt 00:00:06]} 7. c5 {[%clk 01:21:44]}
{[%emt 00:03:20]} Bc7 {[%clk 01:32:11]} {[%emt 00:00:09]} 8. Nc3 {[%clk
01:20:20]} {[%emt 00:01:53]} e5 {[%clk 01:31:45]} {[%emt 00:00:56]} 9. e3
{[%clk 01:17:38]} {[%emt 00:03:12]} O-O {[%clk 01:29:01]} {[%emt 00:03:14]} 10.
b4 {[%clk 01:17:10]} {[%emt 00:00:58]} exd4 {[%clk 01:11:08]} {[%emt 00:18:23]}
11. exd4 {[%clk 01:17:28]} {[%emt 00:00:12]} h6 {[%clk 01:08:44]} {[%emt
00:02:54]} 12. Qc2 {[%clk 01:04:40]} {[%emt 00:13:18]} Re8 {[%clk 01:05:17]}
{[%emt 00:03:58]} 13. Be3 {[%clk 01:04:36]} {[%emt 00:00:35]} Nf8 {[%clk
01:01:42]} {[%emt 00:04:04]} 14. b5 {[%clk 01:01:32]} {[%emt 00:03:34]} Ne4
{[%clk 00:52:22]} {[%emt 00:09:50]} 15. bxc6 {[%clk 00:58:41]} {[%emt
00:03:21]} bxc6 {[%clk 00:52:26]} {[%emt 00:00:26]} 16. Nxe4 {[%clk 00:56:20]}
{[%emt 00:02:51]} Rxe4 {[%clk 00:52:44]} {[%emt 00:00:11]} 17. Ne5 {[%clk
00:54:53]} {[%emt 00:01:57]} Rxe5 {[%clk 00:49:44]} {[%emt 00:03:31]} 18. dxe5
{[%clk 00:54:49]} {[%emt 00:00:34]} Bxe5 {[%clk 00:50:11]} {[%emt 00:00:03]} 19.
Rab1 {[%clk 00:53:05]} {[%emt 00:02:13]} Ne6 {[%clk 00:50:25]} {[%emt
00:00:17]} 20. f4 {[%clk 00:51:10]} {[%emt 00:02:25]} Bf6 {[%clk 00:48:32]}
{[%emt 00:02:22]} 21. Rfd1 {[%clk 00:50:12]} {[%emt 00:01:27]} Ba6 {[%clk
00:45:06]} {[%emt 00:03:56]} 22. Rb4 {[%clk 00:37:11]} {[%emt 00:13:31]} Qc7
{[%clk 00:41:59]} {[%emt 00:03:37]} 23. f5 {[%clk 00:33:46]} {[%emt 00:03:56]}
Ng5 {[%clk 00:41:16]} {[%emt 00:01:14]} 24. Qd2 {[%clk 00:17:39]} {[%emt
00:16:37]} Bc4 {[%clk 00:36:28]} {[%emt 00:05:17]} 25. Rdb1 {[%clk 00:16:42]}
{[%emt 00:01:26]} Bb5 {[%clk 00:36:09]} {[%emt 00:00:50]} 26. Bd4 {[%clk
00:14:13]} {[%emt 00:03:00]} Be7 {[%clk 00:35:31]} {[%emt 00:01:07]} 27. Re1
{[%clk 00:11:15]} {[%emt 00:03:28]} Re8 {[%clk 00:35:24]} {[%emt 00:00:37]} 28.
Rb3 {[%clk 00:09:29]} {[%emt 00:02:16]} f6 {[%clk 00:34:21]} {[%emt 00:01:33]}
29. Kh1 {[%clk 00:08:48]} {[%emt 00:01:11]} Ba6 {[%clk 00:34:16]} {[%emt
00:00:35]} 30. Ra3 {[%clk 00:06:28]} {[%emt 00:02:50]} Bb5 {[%clk 00:29:58]}
{[%emt 00:04:48]} 31. Qb2 {[%clk 00:03:42]} {[%emt 00:03:15]} Ra8 {[%clk
00:28:29]} {[%emt 00:02:00]} 32. Bxd5+ {[%clk 00:03:13]} {[%emt 00:01:00]} Kf8
{[%clk 00:27:15]} {[%emt 00:01:43]} 33. Rb3 {[%clk 00:02:04]} {[%emt 00:01:40]}
a6 {[%clk 00:27:09]} {[%emt 00:00:35]} 34. Bg2 {[%clk 00:01:17]} {[%emt
00:01:17]} Nf7 {[%clk 00:27:00]} {[%emt 00:00:39]} 35. a4 {[%clk 00:01:01]}
{[%emt 00:00:46]} Qa5 {[%clk 00:26:00]} {[%emt 00:01:30]} 36. Ra1 {[%clk
00:00:42]} {[%emt 00:00:49]} Bc4 {[%clk 00:25:43]} {[%emt 00:00:47]} 37. Rb4
{[%clk 00:00:39]} {[%emt 00:00:33]} Bxc5 {[%clk 00:25:14]} {[%emt 00:00:59]} 38.
Rxc4 {[%clk 00:01:04]} {[%emt 00:00:06]} 1-0

[Event "Juniorallsvenskan 2019, Division 1 and 2"]
[Site "Molnlycke kulturhus, Biblioteksgatan 2, Molnlycke, Sweden"]
[Date "2019.11.23"]
[Round "3.15"]
[White "Johansson, Sigge"]
[Black "Elofsson, John"]
[Result "1-0"]
[TimeControl "90 minutes + 30 seconds per move from move one"]
[WhiteFideId "1742612"]
[BlackFideId "1761560"]
[WhiteElo "1245"]
[BlackElo "1334"]

1. e4 {[%clk 01:30:58]} {[%emt 00:00:01]} c6 {[%clk 01:30:54]} {[%emt
00:00:07]} 2. d4 {[%clk 01:31:19]} {[%emt 00:00:08]} d5 {[%clk 01:31:17]}
{[%emt 00:00:07]} 3. e5 {[%clk 01:31:42]} {[%emt 00:00:07]} c5 {[%clk
01:31:41]} {[%emt 00:00:06]} 4. Be3 {[%clk 01:32:02]} {[%emt 00:00:10]} cxd4
{[%clk 01:31:49]} {[%emt 00:00:22]} 5. Bxd4 {[%clk 01:32:26]} {[%emt 00:00:07]}
Nc6 {[%clk 01:32:09]} {[%emt 00:00:10]} 6. c3 {[%clk 01:31:36]} {[%emt
00:01:19]} Bf5 {[%clk 01:32:27]} {[%emt 00:00:11]} 7. Bd3 {[%clk 01:31:26]}
{[%emt 00:00:39]} Bxd3 {[%clk 01:31:34]} {[%emt 00:01:25]} 8. Qxd3 {[%clk
01:31:51]} {[%emt 00:00:05]} e6 {[%clk 01:31:52]} {[%emt 00:00:13]} 9. Nf3
{[%clk 01:31:26]} {[%emt 00:00:54]} Nxd4 {[%clk 01:31:07]} {[%emt 00:01:15]} 10.
cxd4 {[%clk 01:31:05]} {[%emt 00:00:51]} Bb4+ {[%clk 01:31:08]} {[%emt
00:00:29]} 11. Nc3 {[%clk 01:31:11]} {[%emt 00:00:24]} Qb6 {[%clk 01:30:44]}
{[%emt 00:00:52]} 12. O-O {[%clk 01:30:52]} {[%emt 00:00:51]} Ne7 {[%clk
01:30:56]} {[%emt 00:00:19]} 13. a3 {[%clk 01:30:23]} {[%emt 00:00:58]} Bxc3
{[%clk 01:31:18]} {[%emt 00:00:08]} 14. bxc3 {[%clk 01:30:08]} {[%emt
00:00:45]} Rc8 {[%emt 00:02:47]} 15. Rfc1 {[%clk 01:28:14]} {[%emt 00:00:09]}
O-O {[%clk 01:31:30]} {[%emt 00:00:16]} 16. a4 {[%clk 01:26:05]} {[%emt
00:02:38]} Rc6 {[%clk 01:31:10]} {[%emt 00:00:51]} 17. Rab1 {[%clk 01:25:29]}
{[%emt 00:01:07]} Qc7 {[%clk 01:31:18]} {[%emt 00:00:21]} 18. h3 {[%clk
01:23:30]} {[%emt 00:02:29]} Rc8 {[%clk 01:31:27]} {[%emt 00:00:21]} 19. Rb3
{[%clk 01:23:19]} {[%emt 00:00:42]} Ra6 {[%clk 01:30:01]} {[%emt 00:01:55]} 20.
Rcb1 {[%clk 01:22:42]} {[%emt 00:01:07]} Rb6 {[%clk 01:25:15]} {[%emt
00:05:16]} 21. Rxb6 {[%clk 01:20:14]} {[%emt 00:02:58]} axb6 {[%clk 01:25:31]}
{[%emt 00:00:15]} 22. Rb3 {[%clk 01:19:34]} {[%emt 00:01:09]} Nc6 {[%clk
01:25:09]} {[%emt 00:00:52]} 23. Qb5 {[%clk 01:19:30]} {[%emt 00:00:33]} Na5
{[%clk 01:25:08]} {[%emt 00:00:32]} 24. Qxb6 {[%clk 01:19:04]} {[%emt
00:00:56]} Qxb6 {[%clk 01:25:16]} {[%emt 00:00:22]} 25. Rxb6 {[%clk 01:19:27]}
{[%emt 00:00:07]} Rxc3 {[%clk 01:25:30]} {[%emt 00:00:17]} 26. Rb5 {[%clk
01:19:37]} {[%emt 00:00:20]} Nc4 {[%emt 00:01:00]} 27. Rxb7 {[%clk 01:19:43]}
{[%emt 00:00:03]} g6 {[%clk 01:25:26]} {[%emt 00:00:25]} 28. Ng5 {[%emt
00:05:02]} Rc1+ {[%clk 01:22:21]} {[%emt 00:00:42]} 29. Kh2 {[%emt 00:01:46]}
Nd2 {[%clk 01:22:25]} {[%emt 00:00:05]} 30. g3 {[%clk 01:16:48]} {[%emt
00:00:50]} Ne4 {[%clk 01:22:32]} {[%emt 00:00:23]} 31. Nxe4 {[%clk 01:16:08]}
{[%emt 00:01:11]} dxe4 {[%clk 01:22:51]} {[%emt 00:00:11]} 32. Rb2 {[%clk
01:16:08]} {[%emt 00:00:30]} Rc4 {[%clk 01:22:56]} {[%emt 00:00:24]} 33. Ra2
{[%clk 01:15:50]} {[%emt 00:00:48]} Rxd4 {[%clk 01:23:17]} {[%emt 00:00:10]} 34.
a5 {[%clk 01:16:08]} {[%emt 00:00:12]} Rd7 {[%clk 01:23:06]} {[%emt 00:00:41]}
35. a6 {[%clk 01:16:29]} {[%emt 00:00:08]} Ra7 {[%clk 01:23:30]} {[%emt
00:00:06]} 36. g4 {[%clk 01:16:01]} {[%emt 00:00:58]} Kf8 {[%clk 01:23:37]}
{[%emt 00:00:23]} 37. Kg3 {[%clk 01:16:20]} {[%emt 00:00:11]} g5 {[%clk
01:23:49]} {[%emt 00:00:18]} 38. f4 {[%clk 01:14:47]} {[%emt 00:02:03]} exf3
{[%clk 01:23:51]} {[%emt 00:00:29]} 39. Kxf3 {[%clk 01:15:10]} {[%emt
00:00:06]} Ke7 {[%clk 01:22:37]} {[%emt 00:01:44]} 40. Ke4 {[%clk 01:15:16]}
{[%emt 00:00:24]} Kd7 {[%clk 01:22:55]} {[%emt 00:00:12]} 41. Kd4 {[%clk
01:15:36]} {[%emt 00:00:10]} Kc6 {[%clk 01:23:03]} {[%emt 00:00:23]} 42. Kc4
{[%clk 01:15:54]} {[%emt 00:00:08]} Kb6 {[%clk 01:22:50]} {[%emt 00:00:46]} 43.
Kb4 {[%clk 01:15:44]} {[%emt 00:00:40]} Rc7 {[%clk 01:21:14]} {[%emt 00:02:05]}
44. a7 {[%clk 01:14:54]} {[%emt 00:01:21]} 1-0

[Event "Juniorallsvenskan 2019, Division 1 and 2"]
[Site "Molnlycke kulturhus, Biblioteksgatan 2, Molnlycke, Sweden"]
[Date "2019.11.23"]
[Round "3.16"]
[White "Lonn, Edvard"]
[Black "Lyngsjo, Luke"]
[Result "1-0"]
[TimeControl "90 minutes + 30 seconds per move from move one"]
[WhiteFideId "1744712"]
[BlackFideId "1755811"]
[WhiteElo "1387"]
[BlackElo "1211"]

1. d4 {[%clk 01:30:28]} {[%emt 00:53:56]} Nf6 {[%clk 01:30:38]} 2. c4 {[%clk
01:30:22]} {[%emt 00:00:58]} c5 {[%clk 01:31:00]} {[%emt 00:00:08]} 3. d5
{[%clk 01:26:22]} {[%emt 00:04:30]} e6 {[%clk 01:31:13]} {[%emt 00:00:16]} 4.
Nc3 {[%clk 01:26:23]} {[%emt 00:00:30]} exd5 {[%clk 01:31:06]} {[%emt
00:00:36]} 5. cxd5 {[%clk 01:25:41]} {[%emt 00:01:13]} d6 {[%clk 01:31:22]}
{[%emt 00:00:13]} 6. Nf3 {[%clk 01:23:51]} {[%emt 00:02:20]} g6 {[%clk
01:30:17]} {[%emt 00:01:36]} 7. g3 {[%clk 01:22:42]} {[%emt 00:01:40]} Bg7
{[%clk 01:29:47]} {[%emt 00:00:58]} 8. Bg2 {[%clk 01:22:07]} {[%emt 00:01:07]}
O-O {[%clk 01:28:15]} {[%emt 00:01:59]} 9. O-O {[%clk 01:20:36]} {[%emt
00:02:03]} Bf5 {[%clk 01:27:17]} 10. Re1 {[%clk 01:18:32]} {[%emt 00:04:03]}
Ne4 {[%clk 01:24:31]} 11. Nxe4 {[%clk 01:15:44]} {[%emt 00:06:33]} Bxe4 {[%clk
01:24:52]} 12. Ng5 {[%clk 01:14:36]} {[%emt 00:01:47]} Bxg2 {[%clk 01:24:17]}
13. Kxg2 {[%clk 01:15:04]} {[%emt 00:01:07]} h6 {[%clk 01:23:01]} 14. Nf3
{[%clk 01:13:55]} {[%emt 00:03:25]} Nd7 {[%clk 01:21:43]} 15. Bf4 {[%clk
00:54:48]} {[%emt 00:21:25]} Ne5 {[%clk 01:18:06]} 16. Bxe5 {[%clk 00:53:53]}
{[%emt 00:05:33]} Bxe5 {[%clk 01:18:14]} 17. Nxe5 {[%clk 00:54:01]} {[%emt
00:00:44]} dxe5 {[%clk 01:18:38]} 18. e4 {[%clk 00:52:28]} {[%emt 00:02:08]}
Qd6 {[%clk 01:17:50]} 19. Qd2 {[%clk 00:49:13]} {[%emt 00:05:03]} Kg7 {[%clk
01:17:12]} 20. Rf1 {[%clk 00:39:35]} {[%emt 00:11:16]} f5 {[%clk 01:15:26]} 21.
f3 {[%clk 00:35:58]} {[%emt 00:06:23]} b6 {[%clk 01:14:12]} 22. h4 {[%clk
00:18:27]} {[%emt 00:19:45]} f4 {[%clk 01:11:46]} 23. g4 {[%clk 00:16:55]}
{[%emt 00:04:58]} Rad8 {[%clk 01:10:42]} 24. Qd3 {[%clk 00:13:15]} {[%emt
00:05:45]} Rd7 {[%clk 01:09:52]} 25. Rfc1 {[%clk 00:11:36]} {[%emt 00:03:29]}
Rc7 {[%clk 01:07:24]} 26. Rc2 {[%clk 00:10:34]} {[%emt 00:04:29]} Rfc8 {[%clk
01:07:20]} 27. Rac1 {[%clk 00:10:45]} {[%emt 00:00:52]} Kh7 {[%clk 01:04:29]}
28. Qa6 {[%clk 00:08:45]} {[%emt 00:05:52]} Kg7 {[%clk 01:03:27]} 29. a4 {[%clk
00:08:41]} {[%emt 00:02:06]} Kh7 {[%clk 00:56:04]} 30. a5 {[%clk 00:06:25]}
{[%emt 00:10:39]} Kg7 {[%clk 00:53:12]} 31. Rc3 {[%clk 00:06:23]} {[%emt
00:03:54]} Rb8 {[%clk 00:52:17]} 32. b4 {[%clk 00:06:04]} {[%emt 00:02:14]}
Rbc8 {[%clk 00:52:28]} 33. bxc5 {[%clk 00:05:33]} {[%emt 00:01:20]} Rxc5 {[%clk
00:51:06]} 34. Qxa7+ {[%clk 00:05:34]} {[%emt 00:02:08]} R8c7 {[%clk 00:51:12]}
35. Qb8 {[%clk 00:04:11]} {[%emt 00:02:30]} Rxc3 {[%clk 00:49:07]} 36. Rxc3
{[%clk 00:04:28]} {[%emt 00:02:48]} Rd7 {[%clk 00:49:30]} 37. Qxb6 {[%clk
00:04:03]} {[%emt 00:01:02]} Qe7 {[%clk 00:49:11]} 38. a6 {[%clk 00:03:45]}
{[%emt 00:02:04]} Rd6 {[%clk 00:47:21]} 39. Rc6 {[%clk 00:03:27]} {[%emt
00:02:41]} Rxc6 {[%clk 00:47:12]} 40. dxc6 {[%clk 00:02:37]} {[%emt 00:02:00]}
Qxh4 {[%clk 00:47:10]} 41. Qf2 {[%clk 00:02:30]} {[%emt 00:01:08]} 1-0

[Event "Juniorallsvenskan 2019, Division 1 and 2"]
[Site "Molnlycke kulturhus, Biblioteksgatan 2, Molnlycke, Sweden"]
[Date "2019.11.23"]
[Round "3.17"]
[White "Wernberg, Hugo"]
[Black "Jonsson, Filip"]
[Result "1-0"]
[TimeControl "90 minutes + 30 seconds per move from move one"]
[WhiteFideId "1737511"]
[BlackFideId "1739441"]
[WhiteElo "2020"]
[BlackElo "1952"]

1. e4 {[%clk 01:30:57]} {[%emt 00:00:02]} e6 {[%clk 01:30:55]} {[%emt
00:00:06]} 2. Nc3 {[%clk 01:31:13]} {[%emt 00:00:13]} d5 {[%clk 01:31:18]}
{[%emt 00:00:06]} 3. Nf3 {[%clk 01:31:38]} {[%emt 00:00:05]} Nf6 {[%clk
01:31:15]} {[%emt 00:00:33]} 4. e5 {[%clk 01:32:01]} {[%emt 00:00:08]} Nfd7
{[%clk 01:31:40]} {[%emt 00:00:03]} 5. d4 {[%clk 01:32:23]} {[%emt 00:00:09]}
c5 {[%clk 01:32:06]} {[%emt 00:00:05]} 6. dxc5 {[%clk 01:32:46]} {[%emt
00:00:08]} Nxc5 {[%clk 01:32:18]} {[%emt 00:00:17]} 7. Bf4 {[%clk 01:32:22]}
{[%emt 00:00:54]} Nc6 {[%clk 01:32:29]} {[%emt 00:00:18]} 8. Bd3 {[%clk
01:32:26]} {[%emt 00:00:26]} Nxd3+ {[%clk 01:32:43]} {[%emt 00:00:16]} 9. cxd3
{[%clk 01:32:15]} {[%emt 00:00:41]} Be7 {[%clk 01:32:08]} {[%emt 00:01:05]} 10.
O-O {[%clk 01:31:28]} {[%emt 00:01:17]} O-O {[%clk 01:29:45]} {[%emt 00:02:53]}
11. d4 {[%clk 01:29:00]} {[%emt 00:02:59]} Bd7 {[%clk 01:29:02]} {[%emt
00:01:12]} 12. Qd2 {[%clk 01:27:18]} {[%emt 00:02:12]} Rc8 {[%clk 01:27:08]}
{[%emt 00:02:23]} 13. Rac1 {[%clk 01:21:52]} {[%emt 00:05:57]} Qb6 {[%clk
01:12:49]} {[%emt 00:14:49]} 14. Rfd1 {[%clk 01:04:48]} {[%emt 00:17:35]} Na5
{[%clk 01:10:25]} {[%emt 00:02:54]} 15. Qe2 {[%clk 01:01:08]} {[%emt 00:04:09]}
Qa6 {[%clk 01:04:05]} {[%emt 00:06:50]} 16. Qxa6 {[%clk 01:00:11]} {[%emt
00:01:28]} bxa6 {[%clk 01:04:25]} {[%emt 00:00:10]} 17. Bg5 {[%clk 00:50:22]}
{[%emt 00:10:19]} Bxg5 {[%clk 00:59:00]} {[%emt 00:05:54]} 18. Nxg5 {[%clk
00:50:43]} {[%emt 00:00:09]} Nc4 {[%clk 00:59:15]} {[%emt 00:00:15]} 19. b3
{[%clk 00:48:57]} {[%emt 00:02:16]} Na3 {[%clk 00:59:04]} {[%emt 00:00:41]} 20.
Nf3 {[%clk 00:38:00]} {[%emt 00:11:27]} Rc6 {[%clk 00:55:02]} {[%emt 00:04:33]}
21. Ne2 {[%clk 00:34:39]} {[%emt 00:03:51]} Rfc8 {[%clk 00:53:51]} {[%emt
00:01:40]} 22. Rxc6 {[%clk 00:33:10]} {[%emt 00:01:59]} Rxc6 {[%clk 00:54:11]}
{[%emt 00:00:09]} 23. Rc1 {[%clk 00:33:32]} {[%emt 00:00:09]} Rxc1+ {[%clk
00:54:27]} {[%emt 00:00:15]} 24. Nxc1 {[%clk 00:33:51]} {[%emt 00:00:11]} Bb5
{[%clk 00:54:27]} {[%emt 00:00:29]} 25. Ne1 {[%clk 00:30:29]} {[%emt 00:03:52]}
Kf8 {[%clk 00:54:21]} {[%emt 00:00:36]} 26. f4 {[%clk 00:29:52]} {[%emt
00:01:08]} Ke7 {[%clk 00:54:23]} {[%emt 00:00:27]} 27. Kf2 {[%clk 00:29:41]}
{[%emt 00:00:41]} Kd7 {[%clk 00:54:38]} {[%emt 00:00:15]} 28. Ke3 {[%clk
00:28:30]} {[%emt 00:01:41]} Kc6 {[%clk 00:54:41]} {[%emt 00:00:27]} 29. Kd2
{[%clk 00:27:11]} {[%emt 00:01:48]} a5 {[%clk 00:54:06]} {[%emt 00:01:07]} 30.
g3 {[%clk 00:19:26]} {[%emt 00:08:15]} Bf1 {[%clk 00:50:42]} {[%emt 00:03:54]}
31. Nf3 {[%clk 00:18:09]} {[%emt 00:01:44]} h6 {[%clk 00:50:06]} {[%emt
00:01:07]} 32. h4 {[%clk 00:09:18]} {[%emt 00:09:23]} Bg2 {[%clk 00:47:38]}
{[%emt 00:02:56]} 33. Ng1 {[%clk 00:09:00]} {[%emt 00:00:50]} Be4 {[%clk
00:47:18]} {[%emt 00:00:48]} 34. Nce2 {[%clk 00:06:53]} {[%emt 00:02:39]} Nb1+
{[%clk 00:42:32]} {[%emt 00:05:16]} 35. Kc1 {[%clk 00:05:40]} {[%emt 00:01:43]}
Kb5 {[%clk 00:42:43]} {[%emt 00:00:18]} 36. Kb2 {[%clk 00:04:59]} {[%emt
00:01:11]} Kb4 {[%clk 00:41:45]} {[%emt 00:01:28]} 37. Nc3 {[%clk 00:04:48]}
{[%emt 00:00:42]} Na3 {[%clk 00:39:15]} {[%emt 00:02:59]} 38. Nge2 {[%clk
00:04:24]} {[%emt 00:00:55]} Bd3 {[%clk 00:30:26]} {[%emt 00:09:18]} 39. g4
{[%clk 00:04:07]} {[%emt 00:00:48]} a4 {[%clk 00:26:29]} {[%emt 00:04:27]} 40.
Nc1 {[%clk 00:03:46]} {[%emt 00:00:50]} Bb5 {[%clk 00:26:42]} {[%emt 00:00:16]}
41. h5 {[%clk 00:03:37]} {[%emt 00:00:40]} axb3 {[%clk 00:26:54]} {[%emt
00:00:19]} 42. axb3 {[%clk 00:03:56]} {[%emt 00:00:10]} Nb1 {[%clk 00:18:36]}
{[%emt 00:08:48]} 43. Nxb1 {[%clk 00:03:55]} {[%emt 00:00:31]} Bf1 {[%clk
00:17:30]} {[%emt 00:01:37]} 44. g5 {[%clk 00:03:49]} {[%emt 00:00:36]} Bh3
{[%clk 00:17:32]} {[%emt 00:00:27]} 45. Nd3+ {[%clk 00:03:56]} {[%emt
00:00:23]} Kb5 {[%clk 00:17:51]} {[%emt 00:00:11]} 46. Nc3+ {[%clk 00:04:17]}
{[%emt 00:00:09]} Kc6 {[%clk 00:18:07]} {[%emt 00:00:13]} 47. Nf2 {[%clk
00:04:30]} {[%emt 00:00:17]} Bf5 {[%clk 00:18:23]} {[%emt 00:00:14]} 48. Ne2
{[%clk 00:04:32]} {[%emt 00:00:28]} 1-0

[Event "Juniorallsvenskan 2019, Division 1 and 2"]
[Site "Molnlycke kulturhus, Biblioteksgatan 2, Molnlycke, Sweden"]
[Date "2019.11.23"]
[Round "3.18"]
[White "Derdic, Valentin"]
[Black "Ostlund, Joar"]
[Result "1-0"]
[TimeControl "90 minutes + 30 seconds per move from move one"]
[WhiteFideId "1763687"]
[BlackFideId "1735020"]
[WhiteElo "1647"]
[BlackElo "1955"]

1. e4 d5 2. exd5 Nf6 3. Nf3 Nxd5 4. d4 Bg4 5. Be2 e6 6. O-O Bd6 7. Ne5 Bxe2 8.
Qxe2 O-O {[%emt 00:00:32]} 9. Nd2 {[%clk 01:14:07]} {[%emt 00:05:19]} Nd7
{[%clk 01:13:02]} {[%emt 00:09:18]} 10. Ndc4 {[%clk 01:11:49]} {[%emt
00:02:47]} Be7 {[%clk 01:01:39]} {[%emt 00:11:54]} 11. Nxd7 {[%clk 01:09:33]}
{[%emt 00:02:45]} Qxd7 {[%clk 01:01:55]} {[%emt 00:00:14]} 12. Ne5 {[%clk
01:09:49]} {[%emt 00:00:13]} Qa4 {[%clk 00:58:14]} {[%emt 00:04:12]} 13. c4
{[%clk 01:06:20]} {[%emt 00:03:59]} Nb4 {[%clk 00:51:35]} {[%emt 00:07:09]} 14.
b3 {[%clk 01:03:31]} {[%emt 00:03:20]} Qe8 {[%clk 00:51:19]} {[%emt 00:00:46]}
15. Bb2 {[%clk 01:00:26]} {[%emt 00:03:34]} Rd8 {[%clk 00:47:45]} {[%emt
00:04:03]} 16. a3 {[%clk 00:57:49]} {[%emt 00:03:08]} Nc6 {[%clk 00:47:42]}
{[%emt 00:00:34]} 17. Nxc6 {[%clk 00:57:16]} {[%emt 00:01:02]} Qxc6 {[%clk
00:47:54]} {[%emt 00:00:18]} 18. d5 {[%clk 00:57:23]} {[%emt 00:00:23]} Qb6
{[%clk 00:28:25]} {[%emt 00:19:59]} 19. Qg4 {[%clk 00:52:25]} {[%emt 00:05:29]}
g6 {[%clk 00:27:45]} {[%emt 00:01:08]} 20. dxe6 {[%clk 00:47:21]} {[%emt
00:05:34]} Qxe6 {[%clk 00:27:03]} {[%emt 00:01:14]} 21. Qxe6 {[%clk 00:47:12]}
{[%emt 00:00:39]} fxe6 {[%clk 00:27:28]} {[%emt 00:00:05]} 22. Rad1 {[%clk
00:42:02]} {[%emt 00:05:39]} Bc5 {[%clk 00:25:09]} {[%emt 00:02:49]} 23. Rxd8
{[%clk 00:40:09]} {[%emt 00:02:23]} Rxd8 {[%clk 00:25:33]} {[%emt 00:00:06]} 24.
b4 {[%clk 00:39:29]} {[%emt 00:01:10]} Bd4 {[%clk 00:20:13]} {[%emt 00:05:51]}
25. Bxd4 {[%clk 00:39:15]} {[%emt 00:00:44]} Rxd4 {[%clk 00:20:36]} {[%emt
00:00:07]} 26. g3 {[%clk 00:39:43]} {[%emt 00:00:02]} Rxc4 {[%clk 00:20:14]}
{[%emt 00:00:52]} 27. Rd1 {[%clk 00:39:59]} {[%emt 00:00:14]} Kg7 {[%clk
00:17:15]} {[%emt 00:03:29]} 28. Rd7+ {[%clk 00:40:15]} {[%emt 00:00:12]} Kh6
{[%clk 00:17:38]} {[%emt 00:00:08]} 29. h4 {[%clk 00:39:56]} {[%emt 00:00:50]}
b5 {[%clk 00:04:54]} {[%emt 00:13:14]} 30. Kg2 {[%clk 00:38:55]} {[%emt
00:01:31]} g5 {[%clk 00:04:14]} {[%emt 00:01:11]} 31. hxg5+ {[%clk 00:39:02]}
{[%emt 00:00:22]} Kxg5 {[%clk 00:04:36]} {[%emt 00:00:08]} 32. Rxh7 {[%clk
00:38:56]} {[%emt 00:00:35]} Rc3 {[%clk 00:04:17]} {[%emt 00:00:49]} 33. Rd7
{[%clk 00:37:34]} {[%emt 00:01:52]} Kf6 {[%clk 00:03:42]} {[%emt 00:01:06]} 34.
g4 {[%clk 00:37:14]} {[%emt 00:00:50]} a6 {[%clk 00:03:03]} {[%emt 00:01:09]}
35. f4 {[%clk 00:37:01]} {[%emt 00:00:43]} Rxa3 {[%clk 00:02:59]} {[%emt
00:00:33]} 36. g5+ {[%clk 00:35:16]} {[%emt 00:02:16]} Kg6 {[%clk 00:00:40]}
{[%emt 00:02:49]} 37. Rxc7 {[%clk 00:35:39]} {[%emt 00:00:07]} Rb3 {[%clk
00:00:35]} {[%emt 00:00:35]} 38. Re7 {[%clk 00:31:39]} {[%emt 00:04:29]} Rxb4
{[%clk 00:00:35]} {[%emt 00:00:30]} 39. Rxe6+ {[%clk 00:31:59]} {[%emt
00:00:09]} Kf5 {[%clk 00:00:32]} {[%emt 00:00:34]} 40. Rf6+ {[%clk 00:32:13]}
{[%emt 00:00:16]} Kg4 {[%clk 00:00:52]} {[%emt 00:00:11]} 41. Kf2 {[%clk
00:31:03]} {[%emt 00:01:40]} Rb2+ {[%clk 00:00:33]} {[%emt 00:00:49]} 42. Ke3
{[%clk 00:31:23]} {[%emt 00:00:10]} a5 {[%clk 00:00:33]} {[%emt 00:00:30]} 43.
g6 {[%clk 00:31:45]} {[%emt 00:00:07]} Kh5 {[%clk 00:00:33]} {[%emt 00:00:31]}
44. f5 {[%clk 00:30:01]} {[%emt 00:02:14]} Rg2 {[%clk 00:00:47]} {[%emt
00:00:16]} 45. Rf7 {[%clk 00:29:19]} {[%emt 00:01:11]} a4 {[%clk 00:00:40]}
{[%emt 00:00:37]} 46. Kf4 {[%clk 00:28:56]} {[%emt 00:00:54]} Rf2+ {[%clk
00:00:48]} {[%emt 00:00:22]} 47. Ke5 {[%clk 00:29:18]} {[%emt 00:00:07]} a3
{[%clk 00:00:45]} {[%emt 00:00:34]} 48. Rh7 {[%clk 00:29:03]} {[%emt 00:00:44]}
Kg5 {[%clk 00:00:59]} {[%emt 00:00:16]} 49. g7 {[%clk 00:28:41]} {[%emt
00:00:52]} Rxf5+ {[%clk 00:00:32]} {[%emt 00:00:58]} 50. Ke4 {[%clk 00:28:58]}
{[%emt 00:00:13]} Rf4+ {[%clk 00:00:33]} {[%emt 00:00:29]} 51. Ke3 {[%clk
00:29:07]} {[%emt 00:00:20]} Kf5 {[%clk 00:00:31]} {[%emt 00:00:33]} 52. g8=Q
{[%clk 00:29:19]} {[%emt 00:00:17]} 1-0